[Event "Charlotte Fall GM-B 2023"]
[Site "Charlotte"]
[Date "2023.11.18"]
[Round "3.3"]
[White "Wang, Tianqi"]
[Black "Ippolito, Dean"]
[Result "0-1"]
[ECO "D02"]
[WhiteElo "2350"]
[BlackElo "2356"]
[Annotator "ChessBase"]
[PlyCount "84"]
[EventDate "2023.11.17"]
[EventType "tourn"]
[EventCountry "USA"]
[SourceTitle "playchess.com"]
[Source "ChessBase"]
[SourceQuality "1"]
[TimeControl "5400+30"]

1. d4 {[%emt 0:00:27]} d5 {[%emt 0:00:05]} 2. Nf3 {[%emt 0:00:22]} Nf6 {[%emt 0:00:03]} 3. c3 {[%emt 0:00:05]} e6 {[%emt 0:01:11]} 4. Bf4 {[%emt 0:00:57]} c5 {[%emt 0:01:48]} 5. e3 {[%emt 0:00:37]} Nc6 {[%emt 0:01:40]} 6. Nbd2 {[%emt 0:05:14]} Bd6 {[%emt 0:00:06]} 7. dxc5 {[%emt 0:00:12]} Bxc5 {[%emt 0:00:18]} 8. Bd3 {[%emt 0:02:15]} Bd6 {[%emt 0:05:51]} 9. Bxd6 {[%emt 0:08:33]} Qxd6 {[%emt 0:01:03]} 10. Qe2 {[%emt 0:00:17]} Ne5 {[%emt 0:38:03]} 11. Nxe5 {[%emt 0:09:40]} Qxe5 {[%emt 0:00:05]} 12. f4 {[%emt 0:00:49]} Qc7 {[%emt 0:00:52]} 13. O-O {[%emt 0:00:31]} Bd7 {[%emt 0:01:59]} 14. Nf3 {[%emt 0:02:44]} O-O {[%emt 0:03:12]} 15. Ne5 {[%emt 0:01:28]} Be8 {[%emt 0:03:36]} 16. Qf3 {[%emt 0:06:33]} Nd7 {[%emt 0:05:29]} 17. Qh3 {[%emt 0:29:29]} f5 {[%emt 0:00:32]} 18. Nf3 {[%emt 0:02:06]} Qb6 {[%emt 0:00:26]} 19. Kh1 {[%emt 0:19:51]} Qxe3 {[%emt 0:13:52]} 20. Bc2 {[%emt 0:00:02]} Qxf4 {[%emt 0:08:28]} 21. Rae1 {[%emt 0:01:13]} Nc5 {[%emt 0:02:33]} 22. Nd4 {[%emt 0:00:09]} Qd6 {[%emt 0:01:21]} 23. b4 {[%emt 0:00:36]} Ne4 {[%emt 0:00:24]} 24. Nxe6 {[%emt 0:00:09]} Rf6 {[%emt 0:02:17]} 25. Nd4 {[%emt 0:02:47]} Bd7 {[%emt 0:02:41]} 26. Bxe4 {[%emt 0:02:03]} dxe4 {[%emt 0:00:04]} 27. Qe3 {[%emt 0:00:10]} Qc7 {[%emt 0:02:11]} 28. Rf2 {[%emt 0:00:49]} Qc4 {[%emt 0:01:33]} 29. Nb3 {[%emt 0:01:08]} b6 {[%emt 0:00:33]} 30. Nd2 {[%emt 0:00:14]} Qc7 {[%emt 0:00:40]} 31. Rc1 {[%emt 0:01:50]} Bc6 {[%emt 0:00:30]} 32. Rcf1 {[%emt 0:00:28]} Bb5 {[%emt 0:02:22]} 33. Rc1 {[%emt 0:01:03]} Rd8 {[%emt 0:00:10]} 34. c4 {[%emt 0:01:07]} Rd3 {[%emt 0:00:07]} 35. Qe2 {[%emt 0:00:06]} Bc6 {[%emt 0:00:23]} 36. Nf1 {[%emt 0:01:30]} f4 {[%emt 0:00:14]} 37. b5 {[%emt 0:00:19]} Bb7 {[%emt 0:00:21]} 38. Qh5 {[%emt 0:00:45]} Qd7 {[%emt 0:01:36]} 39. Qe5 {[%emt 0:00:42]} f3 {[%emt 0:00:35]} 40. gxf3 {[%emt 0:00:18]} Rdxf3 {[%emt 0:00:23]} 41. Rxf3 {[%emt 0:00:44]} exf3 {[%emt 0:00:03]} 42. c5 {[%emt 0:00:08]} bxc5 {[%emt 0:00:45]} 0-1

[Event "Charlotte Fall GM-B 2023"]
[Site "Charlotte"]
[Date "2023.11.18"]
[Round "3.4"]
[White "Hilby, Craig"]
[Black "Stremavicius, Titas"]
[Result "1/2-1/2"]
[ECO "E05"]
[WhiteElo "2402"]
[BlackElo "2563"]
[Annotator "RC"]
[PlyCount "117"]
[EventDate "2023.11.17"]
[EventType "tourn"]
[EventCountry "USA"]
[SourceTitle "playchess.com"]
[Source "ChessBase"]
[SourceQuality "1"]
[TimeControl "5400+30"]

1. c4 {[%emt 0:00:40]} e6 {[%emt 0:00:50]} 2. g3 {[%emt 0:00:28]} d5 {[%emt 0:00:42]} 3. Bg2 {[%emt 0:00:08]} Nf6 {[%emt 0:00:05]} 4. Nf3 {[%emt 0:00:22]} Be7 {[%emt 0:01:14]} 5. O-O {[%emt 0:00:50]} O-O {[%emt 0:00:06]} 6. d4 {[%emt 0:01:24]} dxc4 {[%emt 0:00:07]} 7. Qc2 {[%emt 0:01:34]} a6 {[%emt 0:01:49]} 8. a4 {[%emt 0:00:25]} Bd7 {[%emt 0:00:08]} 9. Rd1 {[%emt 0:01:55]} Bc6 {[%emt 0:02:58]} 10. Nc3 {[%emt 0:00:17]} Bxf3 {[%emt 0:11:49]} 11. Bxf3 {[%emt 0:00:09]} Nc6 {[%emt 0:00:04]} 12. Bxc6 {[%emt 0:00:12]} bxc6 {[%emt 0:00:05]} 13. a5 {[%emt 0:00:35]} Nd5 {[%emt 0:06:16]} 14. Na2 {[%emt 0:11:40]} Qb8 {[%emt 0:03:58]} 15. Qxc4 {[%emt 0:08:59]} Qb5 {[%emt 0:05:01]} 16. Qxb5 {[%emt 0:02:09]} cxb5 {[%emt 0:00:03]} 17. e4 {[%emt 0:02:42]} Nf6 {[%emt 0:05:07]} 18. Bg5 {[%emt 0:00:18]} c5 {[%emt 0:11:14]} 19. e5 {[%emt 0:10:24]} Nd5 {[%emt 0:00:49]} 20. Bxe7 {[%emt 0:00:03]} Nxe7 {[%emt 0:00:06]} 21. dxc5 {[%emt 0:00:17]} Nc6 {[%emt 0:00:06]} 22. Rd6 {[%emt 0:06:55]} Rfc8 {[%emt 0:21:04]} 23. f4 {[%emt 0:00:35]} Nxa5 {[%emt 0:00:04]} 24. Nb4 {[%emt 0:03:27]} Nb3 {[%emt 0:00:58]} 25. Raxa6 {[%emt 0:00:12]} Nxc5 {[%emt 0:00:06]} 26. Rxa8 {[%emt 0:02:25]} Rxa8 {[%emt 0:00:03]} 27. Rc6 {[%emt 0:01:59]} Ne4 {[%emt 0:03:00]} 28. Rb6 {[%emt 0:01:23]} g5 {[%emt 0:01:14]} 29. fxg5 {[%emt 0:11:47]} Rd8 {[%emt 0:00:52]} 30. h4 {[%emt 0:06:21]} Rd2 {[%emt 0:07:34]} 31. Rxb5 {[%emt 0:01:27]} Rxb2 {[%emt 0:04:26]} 32. Rb8+ {[%emt 0:01:52]} Kg7 {[%emt 0:00:05]} 33. Nc6 {[%emt 0:01:22]} Rxb8 {[%emt 0:00:06]} 34. Nxb8 {[%emt 0:00:03]} Nxg3 {[%emt 0:00:06]} 35. Kg2 {[%emt 0:00:31]} Nf5 {[%emt 0:00:21]} 36. Kh3 {[%emt 0:00:44]} Kg6 {[%emt 0:02:07]} 37. Nd7 {[%emt 0:06:38]} Ne3 {[%emt 0:02:22]} 38. Nf8+ {[%emt 0:01:58]} Kg7 {[%emt 0:00:23]} 39. Nd7 {[%emt 0:00:05]} h6 {[%emt 0:01:31]} 40. Kg3 {[%emt 0:02:55]} Kg6 {[%emt 0:00:42]} 41. gxh6 {[%emt 0:05:38]} Nf5+ {[%emt 0:00:26]} 42. Kf4 {[%emt 0:00:24]} Nxh4 {[%emt 0:01:25]} 43. h7 {[%emt 0:00:04]} Kxh7 {[%emt 0:01:41]} 44. Kg5 {[%emt 0:00:04]} Ng2 {[%emt 0:01:25]} 45. Kf6 {[%emt 0:02:17]} Kg8 {[%emt 0:00:03]} 46. Ke7 {[%emt 0:00:38]} Kg7 {[%emt 0:01:24]} 47. Nf6 {[%emt 0:01:04]} Kg6 {[%emt 0:00:29]} 48. Nd7 {[%emt 0:01:57]} Nf4 {[%emt 0:00:35]} 49. Nf8+ {[%emt 0:00:51]} Kg7 {[%emt 0:00:46]} 50. Nd7 {[%emt 0:00:06]} Nd5+ {[%emt 0:02:40]} 51. Ke8 {[%emt 0:00:53]} Kg8 {[%emt 0:01:26]} 52. Nc5 {[%emt 0:00:39]} Kg7 {[%emt 0:01:49]} 53. Nd7 {[%emt 0:00:16]} Ne3 {[%emt 0:00:22]} 54. Ke7 {[%emt 0:00:28]} Nf5+ {[%emt 0:00:05]} 55. Ke8 {[%emt 0:00:09]} Nd4 {[%emt 0:00:04]} 56. Ke7 {[%emt 0:00:47]} Nf3 {[%emt 0:00:43]} 57. Nc5 {[%emt 0:01:23]} Nxe5 {[%emt 0:00:16]} 58. Nxe6+ {[%emt 0:00:06]} fxe6 {[%emt 0:00:04]} 59. Kxe6 {[%emt 0:01:05]} 1/2-1/2

[Event "Charlotte Fall GM-B 2023"]
[Site "Charlotte"]
[Date "2023.11.18"]
[Round "3.5"]
[White "Ringoir, Tanguy"]
[Black "Korley, Kassa"]
[Result "1/2-1/2"]
[ECO "D12"]
[WhiteElo "2507"]
[BlackElo "2457"]
[Annotator "RC"]
[PlyCount "65"]
[EventDate "2023.11.17"]
[EventType "tourn"]
[EventCountry "USA"]
[SourceTitle "playchess.com"]
[Source "ChessBase"]
[SourceQuality "1"]
[TimeControl "5400+30"]

1. d4 {[%emt 0:00:02]} d5 {[%emt 0:01:21]} 2. c4 {[%emt 0:00:06]} c6 {[%emt 0:00:14]} 3. Nf3 {[%emt 0:00:11]} Nf6 {[%emt 0:00:06]} 4. e3 {[%emt 0:00:38]} Bf5 {[%emt 0:00:30]} 5. Nc3 {[%emt 0:00:10]} e6 {[%emt 0:00:11]} 6. Nh4 {[%emt 0:00:09]} Be4 {[%emt 0:01:17]} 7. f3 {[%emt 0:00:34]} Bg6 {[%emt 0:00:06]} 8. Qb3 {[%emt 0:00:42]} Qc7 {[%emt 0:00:48]} 9. Bd2 {[%emt 0:00:13]} a5 {[%emt 0:00:30]} 10. c5 {[%emt 0:00:18]} Nbd7 {[%emt 0:05:13]} 11. Na4 {[%emt 0:00:07]} Be7 {[%emt 0:01:34]} 12. O-O-O {[%emt 0:02:07]} Bd8 {[%emt 0:05:04]} 13. Be1 {[%emt 0:15:14]} Qb8 {[%emt 0:02:28]} 14. Nxg6 {[%emt 0:03:07]} hxg6 {[%emt 0:00:05]} 15. Kb1 {[%emt 0:00:06]} Bc7 {[%emt 0:02:36]} 16. h4 {[%emt 0:18:17]} e5 {[%emt 0:07:33]} 17. g4 {[%emt 0:01:36]} exd4 {[%emt 0:00:08]} 18. exd4 {[%emt 0:00:10]} Nf8 {[%emt 0:03:21]} 19. Nb6 {[%emt 0:11:23]} Bxb6 {[%emt 0:00:19]} 20. Qxb6 {[%emt 0:01:28]} Ne6 {[%emt 0:00:19]} 21. Rh3 {[%emt 0:02:11]} Nd7 {[%emt 0:07:17]} 22. Qb3 {[%emt 0:00:07]} a4 {[%emt 0:02:27]} 23. Qc3 {[%emt 0:00:57]} b6 {[%emt 0:04:21]} 24. Bg3 {[%emt 0:00:33]} Qb7 {[%emt 0:06:53]} 25. Bd6 {[%emt 0:01:04]} a3 {[%emt 0:02:29]} 26. b3 {[%emt 0:01:49]} bxc5 {[%emt 0:02:03]} 27. dxc5 {[%emt 0:00:01]} Nf6 {[%emt 0:01:49]} 28. Rh2 {[%emt 0:01:52]} Kd8 {[%emt 0:03:55]} 29. h5 {[%emt 0:04:04]} gxh5 {[%emt 0:00:27]} 30. gxh5 {[%emt 0:00:12]} Ne8 {[%emt 0:03:45]} 31. Bg3 {[%emt 0:05:17]} Rh6 {[%emt 0:05:39]} 32. Rh4 {[%emt 0:00:25]} Qe7 {[%emt 0:02:23]} 33. b4 {[%emt 0:13:42]} 1/2-1/2

[Event "Charlotte Fall GM-B 2023"]
[Site "Charlotte"]
[Date "2023.11.19"]
[Round "4.1"]
[White "Gedajlovic, Max"]
[Black "Korley, Kassa"]
[Result "1/2-1/2"]
[ECO "D36"]
[WhiteElo "2407"]
[BlackElo "2457"]
[Annotator "RC"]
[PlyCount "84"]
[EventDate "2023.11.17"]
[EventType "tourn"]
[EventCountry "USA"]
[SourceTitle "playchess.com"]
[Source "ChessBase"]
[SourceQuality "1"]
[TimeControl "5400+30"]

1. d4 {[%emt 0:02:38]} d5 {[%emt 0:00:05]} 2. c4 {[%emt 0:00:09]} e6 {[%emt 0:00:09]} 3. Nc3 {[%emt 0:00:32]} Nf6 {[%emt 0:00:13]} 4. cxd5 {[%emt 0:00:37]} exd5 {[%emt 0:00:19]} 5. Bg5 {[%emt 0:00:11]} c6 {[%emt 0:00:05]} 6. e3 {[%emt 0:00:16]} h6 {[%emt 0:00:12]} 7. Bh4 {[%emt 0:00:10]} Be7 {[%emt 0:00:07]} 8. Bd3 {[%emt 0:00:27]} O-O {[%emt 0:00:19]} 9. Nge2 {[%emt 0:01:58]} Nbd7 {[%emt 0:00:36]} 10. Qc2 {[%emt 0:00:10]} Re8 {[%emt 0:02:49]} 11. O-O {[%emt 0:00:59]} Ne4 {[%emt 0:05:32]} 12. Bxe7 {[%emt 0:01:11]} Qxe7 {[%emt 0:00:04]} 13. Rae1 {[%emt 0:03:12]} Ndf6 {[%emt 0:07:53]} 14. f3 {[%emt 0:02:59]} Nxc3 {[%emt 0:00:31]} 15. Nxc3 {[%emt 0:00:08]} Qd6 {[%emt 0:05:01]} 16. Qf2 {[%emt 0:03:15]} Be6 {[%emt 0:00:07]} 17. Kh1 {[%emt 0:02:29]} Re7 {[%emt 0:08:41]} 18. Rd1 {[%emt 0:04:27]} Rae8 {[%emt 0:09:21]} 19. e4 {[%emt 0:07:54]} dxe4 {[%emt 0:00:28]} 20. fxe4 {[%emt 0:00:24]} Ng4 {[%emt 0:02:08]} 21. Qg1 {[%emt 0:00:15]} Qb4 {[%emt 0:06:16]} 22. Rd2 {[%emt 0:15:13]} c5 {[%emt 0:05:25]} 23. d5 {[%emt 0:04:07]} Bd7 {[%emt 0:00:20]} 24. a3 {[%emt 0:03:52]} Qd4 {[%emt 0:14:42]} 25. Qxd4 {[%emt 0:03:42]} cxd4 {[%emt 0:00:03]} 26. Nb5 {[%emt 0:00:31]} Ne5 {[%emt 0:05:42]} 27. Nd6 {[%emt 0:03:10]} Rd8 {[%emt 0:08:11]} 28. Nxb7 {[%emt 0:01:53]} Rb8 {[%emt 0:02:41]} 29. Nc5 {[%emt 0:01:21]} a5 {[%emt 0:03:31]} 30. Be2 {[%emt 0:02:33]} Bb5 {[%emt 0:03:24]} 31. Bxb5 {[%emt 0:10:28]} Rxb5 {[%emt 0:00:02]} 32. d6 {[%emt 0:01:53]} Re8 {[%emt 0:00:07]} 33. Na6 {[%emt 0:08:40]} Rb6 {[%emt 0:01:52]} 34. Nc7 {[%emt 0:00:15]} Rd8 {[%emt 0:00:23]} 35. Rxd4 {[%emt 0:00:21]} Rxb2 {[%emt 0:03:17]} 36. h3 {[%emt 0:01:14]} Ra2 {[%emt 0:01:05]} 37. Rf5 {[%emt 0:04:35]} f6 {[%emt 0:02:06]} 38. Ne6 {[%emt 0:01:20]} Rd7 {[%emt 0:00:03]} 39. Nc5 {[%emt 0:00:41]} Rd8 {[%emt 0:00:03]} 40. d7 {[%emt 0:03:44]} Kf7 {[%emt 0:01:53]} 41. Nd3 {[%emt 0:06:08]} Nc6 {[%emt 0:01:11]} 42. Rd6 {[%emt 0:00:43]} Rxa3 {[%emt 0:00:10]} 1/2-1/2

[Event "Charlotte Fall GM-B 2023"]
[Site "Charlotte"]
[Date "2023.11.18"]
[Round "4.2"]
[White "Stremavicius, Titas"]
[Black "Ringoir, Tanguy"]
[Result "1/2-1/2"]
[ECO "B33"]
[WhiteElo "2563"]
[BlackElo "2507"]
[Annotator "RC"]
[PlyCount "58"]
[EventDate "2023.11.17"]
[EventType "tourn"]
[EventCountry "USA"]
[SourceTitle "playchess.com"]
[Source "ChessBase"]
[SourceQuality "1"]
[TimeControl "5400+30"]

1. e4 {[%emt 0:00:03]} c5 {[%emt 0:00:03]} 2. Nf3 {[%emt 0:00:05]} Nc6 {[%emt 0:00:04]} 3. d4 {[%emt 0:00:07]} cxd4 {[%emt 0:00:06]} 4. Nxd4 {[%emt 0:00:04]} Nf6 {[%emt 0:00:08]} 5. Nc3 {[%emt 0:00:06]} e5 {[%emt 0:00:04]} 6. Ndb5 {[%emt 0:00:06]} d6 {[%emt 0:00:07]} 7. Bg5 {[%emt 0:00:06]} a6 {[%emt 0:00:02]} 8. Na3 {[%emt 0:00:07]} b5 {[%emt 0:00:05]} 9. Bxf6 {[%emt 0:00:07]} gxf6 {[%emt 0:00:05]} 10. Nd5 {[%emt 0:00:06]} Bg7 {[%emt 0:00:07]} 11. Bd3 {[%emt 0:00:07]} Ne7 {[%emt 0:00:06]} 12. Nxe7 {[%emt 0:00:06]} Qxe7 {[%emt 0:00:06]} 13. c4 {[%emt 0:00:08]} f5 {[%emt 0:00:20]} 14. O-O {[%emt 0:00:07]} O-O {[%emt 0:00:07]} 15. Qf3 {[%emt 0:00:06]} Qb7 {[%emt 0:00:10]} 16. exf5 {[%emt 0:00:07]} Qxf3 {[%emt 0:00:11]} 17. gxf3 {[%emt 0:00:06]} e4 {[%emt 0:00:10]} 18. Bxe4 {[%emt 0:00:07]} d5 {[%emt 0:00:09]} 19. Bxd5 {[%emt 0:00:06]} Bxf5 {[%emt 0:00:13]} 20. Bxa8 {[%emt 0:00:07]} Rxa8 {[%emt 0:00:03]} 21. cxb5 {[%emt 0:00:09]} Bxb2 {[%emt 0:00:09]} 22. Nc4 {[%emt 0:00:05]} Bxa1 {[%emt 0:00:05]} 23. Rxa1 {[%emt 0:00:05]} axb5 {[%emt 0:00:03]} 24. Nd6 {[%emt 0:00:08]} Bd3 {[%emt 0:00:07]} 25. Rd1 {[%emt 0:00:06]} Ra3 {[%emt 0:00:10]} 26. Rd2 {[%emt 0:00:07]} Kf8 {[%emt 0:00:07]} 27. Rb2 {[%emt 0:00:07]} Ra6 {[%emt 0:00:05]} 28. Nxb5 {[%emt 0:00:05]} Bxb5 {[%emt 0:00:03]} 29. Rxb5 {[%emt 0:00:09]} Rxa2 {[%emt 0:00:03]} 1/2-1/2

[Event "Charlotte Fall GM-B 2023"]
[Site "Charlotte"]
[Date "2023.11.19"]
[Round "4.3"]
[White "Ippolito, Dean"]
[Black "Hilby, Craig"]
[Result "1-0"]
[ECO "A58"]
[WhiteElo "2356"]
[BlackElo "2402"]
[Annotator "RC"]
[PlyCount "55"]
[EventDate "2023.11.17"]
[EventType "tourn"]
[EventCountry "USA"]
[SourceTitle "playchess.com"]
[Source "ChessBase"]
[SourceQuality "1"]
[TimeControl "5400+30"]

1. d4 {[%emt 0:00:02]} Nf6 {[%emt 0:02:58]} 2. c4 {[%emt 0:00:05]} c5 {[%emt 0:00:17]} 3. d5 {[%emt 0:00:05]} b5 {[%emt 0:00:16]} 4. cxb5 {[%emt 0:00:04]} a6 {[%emt 0:00:13]} 5. bxa6 {[%emt 0:00:05]} e6 {[%emt 0:00:45]} 6. Nc3 {[%emt 0:05:52]} exd5 {[%emt 0:00:29]} 7. Nxd5 {[%emt 0:00:24]} Be7 {[%emt 0:00:32]} 8. Nxe7 {[%emt 0:10:11]} Qxe7 {[%emt 0:00:09]} 9. e3 {[%emt 0:00:17]} O-O {[%emt 0:01:05]} 10. Nf3 {[%emt 0:01:27]} Rxa6 11. b3 {[%emt 0:08:55]} Ne4 {[%emt 0:13:04]} 12. Bb2 {[%emt 0:01:12]} Rg6 {[%emt 0:01:37]} 13. Ne5 {[%emt 0:07:19]} c4 {[%emt 0:26:36]} 14. Bxc4 {[%emt 0:11:51]} Rxg2 {[%emt 0:01:37]} 15. Qd4 {[%emt 0:11:02]} Qb4+ {[%emt 0:18:40]} 16. Kf1 {[%emt 0:00:04]} Rxf2+ {[%emt 0:00:08]} 17. Kg1 {[%emt 0:00:02]} Rxb2 {[%emt 0:02:49]} 18. Bxf7+ {[%emt 0:01:13]} Rxf7 {[%emt 0:00:06]} 19. Qxb4 {[%emt 0:00:03]} Ng5 {[%emt 0:00:41]} 20. Qg4 {[%emt 0:18:28]} Bb7 {[%emt 0:01:25]} 21. Rf1 {[%emt 0:15:38]} Rxf1+ {[%emt 0:02:47]} 22. Kxf1 {[%emt 0:00:01]} Rb1+ {[%emt 0:00:06]} 23. Ke2 {[%emt 0:00:05]} Rxh1 {[%emt 0:00:09]} 24. Qxg5 {[%emt 0:01:22]} Rxh2+ {[%emt 0:00:10]} 25. Ke1 {[%emt 0:00:10]} Nc6 {[%emt 0:01:45]} 26. Nxd7 {[%emt 0:00:14]} Rxa2 {[%emt 0:04:11]} 27. Qb5 {[%emt 0:02:22]} Ra7 {[%emt 0:01:41]} 28. Ne5 {[%emt 0:01:23]} 1-0

[Event "Charlotte Fall GM-B 2023"]
[Site "Charlotte"]
[Date "2023.11.19"]
[Round "4.5"]
[White "Griffith, Kyron"]
[Black "Cordova, Emilio"]
[Result "0-1"]
[ECO "B68"]
[WhiteElo "2358"]
[BlackElo "2568"]
[Annotator "RC"]
[PlyCount "60"]
[EventDate "2023.11.17"]
[EventType "tourn"]
[EventCountry "USA"]
[SourceTitle "playchess.com"]
[Source "ChessBase"]
[SourceQuality "1"]
[TimeControl "5400+30"]

1. e4 {[%emt 0:03:23]} c5 {[%emt 0:01:26]} 2. Nf3 {[%emt 0:00:08]} Nc6 {[%emt 0:00:48]} 3. d4 {[%emt 0:00:05]} cxd4 {[%emt 0:00:05]} 4. Nxd4 {[%emt 0:00:03]} Nf6 {[%emt 0:00:07]} 5. Nc3 {[%emt 0:00:05]} d6 {[%emt 0:00:40]} 6. Bg5 {[%emt 0:00:14]} Bd7 {[%emt 0:00:24]} 7. Qd2 {[%emt 0:00:49]} a6 {[%emt 0:00:34]} 8. f4 {[%emt 0:06:00]} e6 {[%emt 0:00:59]} 9. O-O-O {[%emt 0:05:06]} Be7 {[%emt 0:01:20]} 10. Nf3 {[%emt 0:03:40]} b5 {[%emt 0:00:22]} 11. Bd3 {[%emt 0:04:38]} h6 {[%emt 0:07:23]} 12. Bh4 {[%emt 0:01:27]} b4 {[%emt 0:06:55]} 13. Ne2 {[%emt 0:00:55]} a5 {[%emt 0:00:29]} 14. e5 {[%emt 0:20:07]} dxe5 {[%emt 0:00:48]} 15. Nxe5 {[%emt 0:01:28]} Nxe5 {[%emt 0:06:34]} 16. fxe5 {[%emt 0:01:12]} Ng4 {[%emt 0:00:56]} 17. Be4 {[%emt 0:08:06]} Rc8 {[%emt 0:08:56]} 18. Bxe7 {[%emt 0:01:29]} Qxe7 {[%emt 0:00:55]} 19. Qd4 {[%emt 0:01:09]} Bb5 {[%emt 0:09:46]} 20. Bd3 {[%emt 0:04:29]} Bxd3 {[%emt 0:00:41]} 21. Rxd3 {[%emt 0:01:41]} Qg5+ {[%emt 0:04:04]} 22. Kb1 {[%emt 0:00:43]} Nxe5 {[%emt 0:00:32]} 23. Re3 {[%emt 0:06:53]} Nc6 {[%emt 0:05:24]} 24. Qe4 {[%emt 0:00:49]} O-O {[%emt 0:00:28]} 25. h4 {[%emt 0:04:05]} Qc5 {[%emt 0:01:26]} 26. Rf1 {[%emt 0:01:57]} Ne7 {[%emt 0:05:16]} 27. g4 {[%emt 0:01:30]} Rfd8 {[%emt 0:03:36]} 28. Rc1 {[%emt 0:09:37]} Rd2 {[%emt 0:01:18]} 29. Nf4 {[%emt 0:01:12]} Rd4 {[%emt 0:00:42]} 30. Qf3 {[%emt 0:00:09]} Rxf4 {[%emt 0:00:13]} 0-1

[Event "Charlotte Fall GM-B 2023"]
[Site "Charlotte"]
[Date "2023.11.19"]
[Round "5.1"]
[White "Cordova, Emilio"]
[Black "Gedajlovic, Max"]
[Result "1-0"]
[ECO "A06"]
[WhiteElo "2568"]
[BlackElo "2407"]
[Annotator "RC"]
[PlyCount "113"]
[EventDate "2023.11.17"]
[EventType "tourn"]
[EventCountry "USA"]
[SourceTitle "playchess.com"]
[Source "ChessBase"]
[SourceQuality "1"]
[TimeControl "5400+30"]

1. Nf3 {[%emt 0:07:03]} d5 {[%emt 0:01:13]} 2. e3 {[%emt 0:01:06]} c5 {[%emt 0:00:24]} 3. b3 {[%emt 0:01:03]} Nf6 {[%emt 0:01:09]} 4. Bb2 {[%emt 0:00:12]} g6 {[%emt 0:00:17]} 5. c4 {[%emt 0:02:27]} dxc4 {[%emt 0:04:58]} 6. Bxc4 {[%emt 0:14:28]} Bg7 {[%emt 0:00:20]} 7. a3 {[%emt 0:09:29]} Nc6 {[%emt 0:02:43]} 8. b4 {[%emt 0:02:06]} Qb6 {[%emt 0:11:48]} 9. Nc3 {[%emt 0:01:01]} cxb4 {[%emt 0:02:11]} 10. Nd5 {[%emt 0:01:22]} Qd8 {[%emt 0:12:40]} 11. Nxf6+ {[%emt 0:02:08]} Bxf6 {[%emt 0:01:18]} 12. Bxf6 {[%emt 0:00:10]} exf6 {[%emt 0:00:05]} 13. axb4 {[%emt 0:00:35]} O-O {[%emt 0:02:49]} 14. b5 {[%emt 0:04:37]} Ne5 {[%emt 0:02:24]} 15. Nxe5 {[%emt 0:02:49]} fxe5 {[%emt 0:00:11]} 16. Qb3 {[%emt 0:03:17]} Qb6 {[%emt 0:15:17]} 17. O-O {[%emt 0:01:10]} Bd7 {[%emt 0:00:15]} 18. Rfb1 {[%emt 0:03:55]} Kg7 {[%emt 0:01:18]} 19. d3 {[%emt 0:02:05]} f6 {[%emt 0:07:52]} 20. h3 {[%emt 0:18:08]} Rfe8 {[%emt 0:02:16]} 21. d4 {[%emt 0:05:42]} exd4 {[%emt 0:01:19]} 22. Rd1 {[%emt 0:00:08]} Re4 {[%emt 0:10:12]} 23. exd4 {[%emt 0:04:21]} Rc8 {[%emt 0:02:50]} 24. Bf1 {[%emt 0:03:14]} Ree8 {[%emt 0:07:14]} 25. Ra3 {[%emt 0:04:00]} Rc7 {[%emt 0:01:50]} 26. Qb1 {[%emt 0:02:42]} Rd8 {[%emt 0:01:27]} 27. Re3 {[%emt 0:01:11]} Be8 {[%emt 0:01:22]} 28. Qb4 {[%emt 0:01:55]} Bf7 {[%emt 0:00:21]} 29. Qa4 {[%emt 0:01:00]} Rcd7 {[%emt 0:00:55]} 30. Re4 {[%emt 0:00:23]} Bd5 {[%emt 0:01:23]} 31. Re3 {[%emt 0:00:19]} Bf7 {[%emt 0:00:14]} 32. Red3 {[%emt 0:00:06]} Rd5 {[%emt 0:00:53]} 33. R3d2 {[%emt 0:00:47]} R8d7 {[%emt 0:01:42]} 34. Be2 {[%emt 0:00:30]} Be8 {[%emt 0:00:46]} 35. Qa1 {[%emt 0:00:37]} Rc7 {[%emt 0:00:47]} 36. Qa2 {[%emt 0:01:37]} Bf7 {[%emt 0:01:01]} 37. Qa3 {[%emt 0:00:23]} Rcd7 {[%emt 0:00:55]} 38. Qa1 {[%emt 0:00:13]} Rc7 {[%emt 0:00:09]} 39. Ra2 {[%emt 0:00:17]} Rcd7 {[%emt 0:02:33]} 40. Rxa7 {[%emt 0:00:08]} R5d6 {[%emt 0:00:36]} 41. Rd2 {[%emt 0:00:57]} Be6 {[%emt 0:00:23]} 42. Ra4 {[%emt 0:00:27]} Rc7 {[%emt 0:00:16]} 43. Qa3 {[%emt 0:00:11]} Bf7 {[%emt 0:00:53]} 44. h4 {[%emt 0:00:44]} Rcd7 {[%emt 0:00:26]} 45. Ra8 {[%emt 0:00:22]} Qc7 {[%emt 0:00:31]} 46. Bg4 {[%emt 0:01:20]} Re7 {[%emt 0:00:30]} 47. Rc8 {[%emt 0:00:16]} Re1+ {[%emt 0:00:29]} 48. Kh2 {[%emt 0:00:03]} Qe7 {[%emt 0:00:02]} 49. Bf3 {[%emt 0:01:14]} Qd7 {[%emt 0:00:42]} 50. Rdc2 {[%emt 0:00:16]} Qe6 {[%emt 0:00:49]} 51. R2c7 {[%emt 0:00:28]} g5 {[%emt 0:00:24]} 52. Bh5 {[%emt 0:00:52]} Qe4 {[%emt 0:00:36]} 53. Rxf7+ {[%emt 0:00:08]} Kh6 {[%emt 0:00:01]} 54. hxg5+ {[%emt 0:00:29]} Kxh5 {[%emt 0:00:54]} 55. Qh3+ {[%emt 0:00:04]} Kg6 {[%emt 0:00:22]} 56. Qxh7+ {[%emt 0:00:13]} Kxg5 {[%emt 0:00:04]} 57. Rc5+ {[%emt 0:00:47]} 1-0